Cogmind - Beta 12 *** ADVENTURER MODE // 2024.01.05 @ 00:46:18 Player: martinuzz Result: Self-destructed Performance ------------- Evolutions (0) 0 Regions Visited (4) 800 Robots Destroyed (44) 220 Value Destroyed (649) 649 Prototype IDs (6) 120 Alien Tech Used (0) 0 Bonus (300) 300 TOTAL SCORE: 2089 Bonus ------- Aligned with FarCom 300 Cogmind --------- Core Integrity 92/250 Matter 213/300 Energy 1600/1600 System Corruption 0% Temperature Warm (166) Movement Core (400) Ox7 Location -9/Mines Parts ------- > --- POWER (1) -------- (None) > --- PROPULSION (2) --- (None) > --- UTILITY (2) ------ Large Storage Unit Superbattery > --- WEAPON (2) ------- (None) > --- INVENTORY (15) --- Light Nuclear Core Light Treads Light Treads Light Treads Light Treads Improved Hover Unit Signal Interpreter Signal Interpreter Sensor Drone Bay Improved Medium Laser Improved Medium Laser Heavy Assault Rifle Heavy Assault Rifle Peak State ------------ > --- POWER ------------ Improved Ion Engine > --- PROPULSION ------- Light Treads Light Treads > --- UTILITY ---------- Large Storage Unit Superbattery > --- WEAPON ----------- Improved Medium Laser Rocket Launcher > --- INVENTORY -------- Light Nuclear Core Light Treads Light Treads Light Treads Light Treads Improved Hover Unit Signal Interpreter Signal Interpreter Sensor Drone Bay Improved Medium Laser Improved Medium Laser Heavy Assault Rifle Heavy Assault Rifle Heavy Assault Rifle [Rating: 23] Favorites ----------- Power Light Ion Engine Engine Light Ion Engine Propulsion Light Treads Treads Light Treads Utility Large Storage Unit Device Improved Terrain Scanner Storage Large Storage Unit Weapon Heavy Assault Rifle Energy Gun Improved Medium Laser Ballistic Gun Heavy Assault Rifle Launcher Rocket Launcher Build | -11 -10 -10 -10 -9 ------- Run | Jun Mat Min Exi Min Slots Evolved . | . . . . . Power . | . . . . . Propulsion . | . . . . . Utility . | . . . . . Weapon . | . . . . . Parts Attached 29 | 6 16 2 2 3 Power 6 | 1 3 1 . 1 Engine 6 | 1 3 1 . 1 Core . | . . . . . Reactor . | . . . . . Propulsion 9 | 2 5 1 1 . Treads 9 | 2 5 1 1 . Leg . | . . . . . Wheel . | . . . . . Hover . | . . . . . Flight . | . . . . . Utility 3 | . 2 . 1 . Device 1 | . 1 . . . Storage 2 | . 1 . 1 . Processor . | . . . . . Hackware . | . . . . . Protection . | . . . . . Artifact . | . . . . . Weapon 11 | 3 6 . . 2 Energy Gun 3 | 1 2 . . . Energy Cannon . | . . . . . Ballistic Gun 7 | 2 4 . . 1 Ballistic Cannon . | . . . . . Launcher 1 | . . . . 1 Special Weapon . | . . . . . Impact Weapon . | . . . . . Slashing Weapon . | . . . . . Piercing Weapon . | . . . . . Special Melee Weapon . | . . . . . Unidentified Prototypes 2 | . 1 . 1 . Parts Lost 7 | . . . . 7 Power 2 | . . . . 2 Propulsion 2 | . . . . 2 Utility . | . . . . . Weapon 3 | . . . . 3 Highest Loss Streak 6 | . . . . 6 To Critical Strikes . | . . . . . Average Slot Usage (%) 97 | . 99 100 100 90 Engine 11 | . 13 14 14 5 Treads 27 | . 27 28 28 27 Device 9 | . 13 14 7 . Storage 18 | . 14 14 20 28 Energy Gun 12 | . 10 14 14 14 Ballistic Gun 14 | . 17 14 14 12 Naked Turns . | . . . . . Heaviest Build 33 | 7 30 30 33 33 Greatest Support 40 | 40 40 40 40 40 Greatest Overweight (x) 1 | . 1 . . . Average Overweight (x) . | . . . . . Largest Inventory Capacity 15 | 5 15 15 15 15 Average Capacity 14 | 5 14 15 15 15 Most Carried 15 | 4 15 15 15 15 Average Carried 12 | 2 9 14 14 14 Final Capacity 15 | 5 15 15 15 15 Final Carried 15 | 4 15 15 15 13 Class Distribution -------------------- 100% | Mutant Dominant Class ---------------- Mutant | -10/Materials Mutant | -10/Mines Mutant | -10/Exiles Mutant | -9/Mines Resources | -11 -10 -10 -10 -9 ----------- Run | Jun Mat Min Exi Min Matter Collected 642 | 274 212 65 . 91 Remotely . | . . . . . Salvage Created 1206 | 98 649 192 . 267 Parts 69 | 5 36 11 . 17 Haulers Intercepted 2 | . 2 . . . Recyclers Shooed 3 | . 3 . . . Parts Field Recycled . | . . . . . Retrieved Matter . | . . . . . Parts Self-Destructed . | . . . . . Prevented . | . . . . . Kills | -11 -10 -10 -10 -9 ------- Run | Jun Mat Min Exi Min Combat Hostiles Destroyed 33 | . 11 6 . 16 Guns 32 | . 11 6 . 15 AOE 1 | . . . . 1 Classes Destroyed 10 | 2 4 1 . 3 Worker 1 | . . . . 1 Builder 1 | . . 1 . . Tunneler 2 | 1 . . . 1 Hauler 2 | . 2 . . . Recycler 4 | 1 2 1 . . Watcher 3 | . 3 . . . Swarmer 23 | . 6 6 . 11 Grunt 6 | . 5 . . 1 Demolisher 2 | . . . . 2 Assembled 2 | . . . . 2 Best Kill Streak 5 | 2 3 4 . 5 Combat Bots Only 4 | . 3 3 . 4 Max Kills in Single Turn 1 | 1 1 1 . 1 Gunslinging . | . . . . . Exploded 1 | . . . . 1 Melee . | . . . . . Uniques/NPCs Destroyed . | . . . . . Combat | -11 -10 -10 -10 -9 -------- Run | Jun Mat Min Exi Min Damage Taken 1182 | . 227 94 . 861 Core 158 | . 28 15 . 115 Absorbed by Shields . | . . . . . Regen/Repaired (Parts) 18 | . 18 . . . Core Remaining (%) 100 | 100 . . . . Volleys Fired 103 | 9 41 15 . 38 Largest 2 | 2 2 2 . 2 Hottest 112 | 60 112 79 . 89 Shots Fired 205 | 18 82 30 . 75 Gun 199 | 18 82 30 . 69 Cannon . | . . . . . Launcher 6 | . . . . 6 Special . | . . . . . Kinetic 98 | 14 38 15 . 31 Thermal 101 | 4 44 15 . 38 Explosive 6 | . . . . 6 Electromagnetic . | . . . . . Robot Hit Streak 21 | 7 21 12 . 12 Robot Miss Streak 2 | 2 2 1 . 2 Penetration Max . | . . . . . Secondary Targets 3 | . 2 . . 1 Max Gunslinging Chain 1 | . 1 . . 1 Shots Hit Robots 147 | 14 61 23 . 49 Core Hits 69 | 4 28 10 . 27 Critical Kills . | . . . . . Critical Parts Destroyed . | . . . . . Critical Strikes 4 | . 2 1 . 1 Burn 4 | . 2 1 . 1 Melee Attacks . | . . . . . Impact . | . . . . . Slashing . | . . . . . Piercing . | . . . . . Sneak Attacks . | . . . . . Combat Hostiles . | . . . . . Follow-up Attacks . | . . . . . Damage Inflicted 2168 | 118 686 373 . 991 Guns 1929 | 118 686 373 . 752 Cannons . | . . . . . Explosions 223 | . . . . 223 Melee . | . . . . . Ramming 16 | . . . . 16 Kinetic 748 | 88 245 191 . 224 Thermal 1181 | 30 441 182 . 528 Explosive 223 | . . . . 223 Electromagnetic . | . . . . . Impact . | . . . . . Slashing . | . . . . . Piercing . | . . . . . Highest Corruption . | . . . . . Average Corruption . | . . . . . Corruption Purged . | . . . . . Corruption Blocked . | . . . . . Overload Shots . | . . . . . Overflow Damage . | . . . . . Projectiles . | . . . . . Explosions . | . . . . . Melee . | . . . . . Knockbacks 1 | . . . . 1 Impact 1 | . . . . 1 Kinetic . | . . . . . Secondary . | . . . . . Self-Inflicted Damage 13 | . . . . 13 Shots 1 | . . . . 1 Rammed 2 | . . . . 2 Targets Rammed 2 | . . . . 2 Kicked . | . . . . . Crushed . | . . . . . Highest Temperature 279 | 20 279 108 . 166 Average Temperature 52 | 15 56 35 . 58 Received Heat Transfer 135 | . 114 9 . 12 Siege Activations . | . . . . . Robots Corrupted . | . . . . . Combat Hostiles . | . . . . . Parts Fried . | . . . . . Impact Corruptions . | . . . . . Robots Melted . | . . . . . Combat Hostiles . | . . . . . Parts Melted 5 | . 4 . . 1 Heat Transferred 2919 | 75 1142 481 . 1221 Parts Sabotaged . | . . . . . Parts Stolen . | . . . . . Parts Stripped . | . . . . . Power Chain Reactions . | . . . . . Missiles Intercepted . | . . . . . Alert | -11 -10 -10 -10 -9 ------- Run | Jun Mat Min Exi Min Peak Influence 281 | 10 281 170 . 260 Initial 5 | . 5 . . . Average 74 | 2 101 56 . 63 Maximum Alert Level 1 | . 1 . . 1 Low Security (%) 92 | 100 82 100 . 97 Level 1 7 | . 17 . . 2 Level 2 . | . . . . . Level 3 . | . . . . . Level 4 . | . . . . . Level 5 . | . . . . . High Security . | . . . . . Max Security . | . . . . . Squads Dispatched 1 | . 1 . . . Investigation 1 | . 1 . . . Extermination . | . . . . . Reinforcement . | . . . . . Assault . | . . . . . Garrison . | . . . . . Intercept . | . . . . . Searches Triggered . | . . . . . Construction Impeded . | . . . . . Haulers Reinforced . | . . . . . Active Scanning Responses . | . . . . . Cargo Convoy Interrupts . | . . . . . Stealth | -11 -10 -10 -10 -9 --------- Run | Jun Mat Min Exi Min Distress Signals 1 | . 1 . . . Communications Jammed . | . . . . . Distress Signals . | . . . . . Times Spotted 60 | . 19 8 . 33 Peak Tracking Total 15 | . 4 3 . 15 Tactical Retreats . | . . . . . Traps | -11 -10 -10 -10 -9 ------- Run | Jun Mat Min Exi Min Traps Triggered 4 | . 4 . . . Indirectly . | . . . . . Trap Hack Attempts . | . . . . . Triggered . | . . . . . Disarmed . | . . . . . Reprogrammed . | . . . . . Reused . | . . . . . Traps Extracted . | . . . . . Installed . | . . . . . Triggered . | . . . . . Machines | -11 -10 -10 -10 -9 ---------- Run | Jun Mat Min Exi Min Machines Disabled . | . . . . . Max in Single Turn . | . . . . . Machines Repaired . | . . . . . Machines Sabotaged . | . . . . . Overloaded Fab Kills . | . . . . . Hacking | -11 -10 -10 -10 -9 --------- Run | Jun Mat Min Exi Min Machines Accessed 13 | . 10 2 . 1 Terminals 9 | . 7 2 . . Fabricators . | . . . . . Repair Stations 1 | . 1 . . . Recycling Units 2 | . 2 . . . Scanalyzers . | . . . . . Garrison Access . | . . . . . Total Hacks 45 | . 37 7 . 1 Successful 34 | . 28 5 . 1 Failed 11 | . 9 2 . . Catastrophic 1 | . 1 . . . Database Lockouts . | . . . . . Manual 1 | . . . 1 . Terminals 37 | . 30 7 . . Fabricators . | . . . . . Repair Stations 3 | . 3 . . . Recycling Units 4 | . 4 . . . Scanalyzers . | . . . . . Garrison Access . | . . . . . Terminal Hacks 30 | . 24 5 . 1 Record 8 | . 6 2 . . Prototype ID Bank 3 | . 3 . . . Open Door 1 | . . . . 1 Level Access Points 1 | . 1 . . . Branch Access Points 1 | . 1 . . . Emergency Access Points 1 | . 1 . . . Alert Level 2 | . 2 . . . Locate Traps 2 | . 2 . . . Dispatch Records 2 | . 1 1 . . Transport Status 3 | . 3 . . . Hauler Manifests 3 | . 3 . . . Zone Layout 3 | . 1 2 . . Fabricator Hacks . | . . . . . Repair Station Hacks 2 | . 2 . . . Scan Component 1 | . 1 . . . Repair 1 | . 1 . . . Recycling Unit Hacks 2 | . 2 . . . Retrieve Components 2 | . 2 . . . Scanalyzer . | . . . . . Garrison Access Hacks . | . . . . . Unauthorized Hacks . | . . . . . Terminals . | . . . . . Fabricators . | . . . . . Repair Stations . | . . . . . Recycling Units . | . . . . . Scanalyzers . | . . . . . Garrison Access . | . . . . . Data Cores Recovered . | . . . . . Used . | . . . . . Hacking Detections 7 | . 7 . . . Full Trace Events 1 | . 1 . . . Feedback Events . | . . . . . Feedback Blocked . | . . . . . Robot Schematics Acquired . | . . . . . Robots Built . | . . . . . Authchips . | . . . . . Time . | . . . . . Total Robot Build Rating . | . . . . . Part Schematics Acquired . | . . . . . Parts Built . | . . . . . Authchips . | . . . . . Time . | . . . . . Total Part Build Rating . | . . . . . Parts Repaired 1 | . 1 . . . Time 38 | . 38 . . . Parts Recycled . | . . . . . Recycled Matter . | . . . . . Retrieved Matter . | . . . . . Retrieved Components 13 | . 13 . . . Parts Scanalyzed . | . . . . . Part Schematics Acquired . | . . . . . Parts Damaged . | . . . . . Bothacking | -11 -10 -10 -10 -9 ------------ Run | Jun Mat Min Exi Min Used RIF Installer . | . . . . . Robots Hacked . | . . . . . Non-combat . | . . . . . Combat . | . . . . . Robot Hacks Applied . | . . . . . Relay Couplers Released . | . . . . . Fabnet Peak Effective % . | . . . . . Robots Rewired . | . . . . . Allies Hacked . | . . . . . Hacks Repelled . | . . . . . Allies | -11 -10 -10 -10 -9 -------- Run | Jun Mat Min Exi Min Total Allies 2 | . . 2 . . Largest Group 2 | . . 2 2 . Highest-Rated Group 38 | . . 38 38 . Highest-Rated Ally 31 | . . 31 31 . Total Orders . | . . . . . Ally Attacks 1 | . . 1 . . Total Damage 21 | . . 21 . . Kills . | . . . . . Allies Corrupted . | . . . . . Allies Melted . | . . . . . Intel | -11 -10 -10 -10 -9 ------- Run | Jun Mat Min Exi Min Robot Analysis Total . | . . . . . Derelict Logs Recovered 3 | . . 2 . 1 Drone Launches . | . . . . . Drone Recoveries . | . . . . . Exploration | -11 -10 -10 -10 -9 ------------- Run | Jun Mat Min Exi Min Turns Passed 3731 | 109 1282 947 409 984 Spaces Moved 2047 | 45 664 553 253 532 Core 9 | 9 . . . . Treads 2038 | 36 664 553 253 532 Legs . | . . . . . Wheels . | . . . . . Hover . | . . . . . Flight . | . . . . . Fastest Speed 50 | 50 160 160 160 160 Average Speed 159 | 138 160 160 160 160 Slowest Speed 240 | 160 240 160 160 160 Overloaded Moves . | . . . . . Propulsion Burnouts . | . . . . . Robots Hopped . | . . . . . Cave-ins Triggered . | . . . . . Exploration Rate (%) 63 | 4 90 93 42 90 Regions Visited 4 Branch Regions 3 Pre-discovered Areas 1 | . . 1 . . Known Exits Taken 1 | . 1 . . . Unknown Exits Taken 3 | 1 . 1 1 . Scrap Searched 3 | . . 1 . 2 Spaces Dug . | . . . . . Terrain Destroyed 29 | . . . . 29 Melee . | . . . . . Projectile . | . . . . . AOE 29 | . . . . 29 Terrain Rammed . | . . . . . Walls Destroyed . | . . . . . Machines Disabled . | . . . . . Actions | -11 -10 -10 -10 -9 --------- Run | Jun Mat Min Exi Min Total 2316 | 76 805 586 260 589 Wait 71 | 8 44 11 . 8 Move 2043 | 44 663 552 252 532 Hop . | . . . . . Pick Up 48 | 9 30 3 3 3 Fast Attach . | . . . . . Attach 15 | 5 8 . . 2 Detach . | . . . . . Swap 14 | 1 8 2 2 1 Drop 20 | . 11 3 3 3 Fire 103 | 9 41 15 . 38 Melee . | . . . . . Ram . | . . . . . Kick . | . . . . . Crush 2 | . . . . 2 Escape Stasis . | . . . . . Rewire . | . . . . . Trap . | . . . . . Miscellaneous . | . . . . . Route ------- -11/Junkyard -10/Materials (discovered 5 exits: *Mat x3 / *Min x2) -10/Mines (discovered 3 exits: *Mat x2 / *Exi) -10/Exiles -9/Mines (discovered 2 exits: [*Mat x2]) History --------- Turn | Location | Event 14 | -11/Junkyard | Discovered new exit (range 15) 110 | -11/Junkyard | Entered Materials 313 | -10/Materials | Build established: Mutant 431 | -10/Materials | Discovered new exit (range 14) 556 | -10/Materials | Discovered new exit (range 15) 756 | -10/Materials | Discovered new exit (range 13) 863 | -10/Materials | Discovered new exit (range 15) 1013 | -10/Materials | Identified exit to Mines 1134 | -10/Materials | Discovered new exit (range 8) 1150 | -10/Materials | Identified exit to Materials 1271 | -10/Materials | Repaired Lgt. Nuclear Core 1392 | -10/Materials | Entered Mines 1444 | -10/Mines | Discovered exit to Materials (range 15) 1566 | -10/Mines | Learned location of Storage (-9) 2098 | -10/Mines | Joined a pair of Derelicts in attacking an 0b10 outpost 2275 | -10/Mines | Deemed a non-threat by the Exiles lab entrance 2275 | -10/Mines | Discovered new exit (range 5) 2339 | -10/Mines | Entered Exiles 2339 | -10/Exiles | Accompanied by 2 allies 2363 | -10/Exiles | Discovered new exit (range 14) 2369 | -10/Exiles | Led the pair of lost Derelicts to a safe place 2418 | -10/Exiles | Met 8R-AWN 2443 | -10/Exiles | Met EX-HEX 2491 | -10/Exiles | Met EX-BIN 2511 | -10/Exiles | Aligned with FarCom system 2512 | -10/Exiles | Given EX-Vault access code 2549 | -10/Exiles | Opened EX-Vault 2558 | -10/Exiles | Found Prototype Storage 2559 | -10/Exiles | Identified Superbattery 2599 | -10/Exiles | Warned to stay clear of 0b10 Research branches 2748 | -10/Exiles | Left Exiles lab with Superbattery 2748 | -10/Exiles | Entered Mines 2762 | -9/Mines | Met a Derelict bent on vengeance 2799 | -9/Mines | Learned location of 1 exit from Materials 3064 | -9/Mines | Discovered new exit (range 6) 3280 | -9/Mines | Discovered new exit (range 12) 3366 | -9/Mines | Found a hidden stash of uninstalled traps 3595 | -9/Mines | Found the Drone Emporium 3603 | -9/Mines | Found Prototype Device 3680 | -9/Mines | Assembled infested the area 3685 | -9/Mines | Assisted by a Guerilla fighting off Assembled 3712 | -9/Mines | Core integrity fell below 50% 3732 | -9/Mines | Self-destructed Last Messages --------------- 03711_ U-05 Engineer lays Concrete. 03712_ The unstable cave ceiling collapses. 03712_ Lgt. Treads destroyed. 03713_ The unstable cave ceiling collapses. 03713_ Flexi-carbon Leg crushed. 03713_ U-05 Engineer builds a Wall. 03714_ The unstable cave ceiling collapses. 03714_ K-01 Serf collects debris. 03714_ D-53 Grenadier destroyed. 03714_ Switching to secondary target: as-92193. 03717_ K-01 Serf collects debris. 03724_ Lgt. Treads destroyed. 03725_ K-01 Serf collects debris. 03726_ Destroyed Asb. Hover Unit. 03728_ The unstable cave ceiling collapses. 03729_ as-80067 destroyed. 03730_ Hvy. Assault Rifle destroyed. 03730_ Imp. Ion Engine destroyed. 03730_ K-01 Serf collects debris. 03732_ Imp. Medium Laser destroyed. Map ----- +----------------------------------------------------+ | #????????# ## #????? ##?????????? | | ###??????# ####### ! #????? ##??????????? | | ##????# #?????### [#????# ????????????? | | ##???# #???????## ##???? ????????????? | | ##??# #????????# #????? ????????????? | | #### #???????## ##????? ????????????? | | #??????## ####??????? ????????????? | | # & ##????## ##?????????? #????????????? | | ## & #### ##???#! ##????????? #?????????????? | | ?##& ## #???# ####????? #??????????????? | | ??# ##### ##### #??????????????? | | ??## #??????????????? | | ???###### % #??????????????? | | ????????## ###### # ??????????????? | | ????????## ##????### % # ????????????? | | ????????# ##??????## ????????????? | | ????????# ##??????# k a ????????????? | | ????????# #??????## #?????????????? | | ????????## #???????## #?????????????? | | ?????????## ##???????## ##?????????????? | | ??????????#####???????## #?????????????? | | ?????????????????????## #??????????????? | | ????????????????????## ###?????????????? | | ???###??????????????# # ##????????????? | | ??# ##?????????????# # ## ##???????? | | ## #?????????????# @a aaa % $ ???? | | #?????????????## a ] a! ;????????? | | ##??????????????# # % ####????????? | | #???????????????# ##???????????? | | ##???????????????## #????????????? | | ####?????????????????# #????????????? | | ##????????????????????# ### #????????????? | | #??????????????###???## ##?#### #????????????? | | ??????????????## ##??# ##????? #????????????? | | ??????????????# ##?# #?????? #????????????? | | ??????????????# #### #??????? ????????????? | | ????????####### ### # ##???????##???????????? | | ???????##""## ## ####?????????????????????? | | ???????#" #X #????????????????????????? | | ???????#"/ ####????????????????????????? | | ???????#" #???????????????????????????? | | ???????#" # #??????????????????????????? | | ???????##""## #??????????????????????????? | | ????????####### ##??????????????????????????? | | ??????????????## ###???????????????????????????? | | ???????????????#####?????????????????????????????? | | ?????????????????????????????????????????????????? | | ?????????????????????????????????????????????????? | | | | | +----------------------------------------------------+ Best States ------------- Heat Dissipation 25 Energy Generation 12 Energy Capacity 1765 Matter Stores 300 Matter Capacity 300 Sight Range 16 Terrain Scan Range 16 Terrain Scan Density 10 Resistance: KI 20 Resistance: TH 20 Resistance: EX 20 Resistance: EM 20 Resistance: I 20 Resistance: S 20 Resistance: P 20 Evasion (%) 50 Recoil Reduction 2 Offensive Hacking 10 Item Schematics ----------------- None Robot Schematics ------------------ None Fabricated ------------ Nothing Alien Tech Used ----------------- None Achievements -------------- None Challenges ------------ None Game ------ Seed 11235813 Manual? 1 Play Time 00:32:08 Cumulative 29.6 hours Start 2024.01.05 @ 00:10:48 End 2024.01.05 @ 00:46:18 Sessions 1 Manual Loads 0 Difficulty Adventurer Special Mode None Game No. 15 Rogue 0 Adventurer 15 Explorer 0 Win Type - Total 0 Types 0/0/0/0/0/0/0/0/0 Lore% 23 Gallery% 25 Achievement% 24 Wizard Run 0 Options --------- ASCII 0 Keyboard 0 Movement Mouse Keybinds 0 Fullscreen 1 Font 18/TerminusBold Map View 76x50 Tactical HUD 1 Map Filters NONE Filters NONE Steam 1 RUN: c4bb6b26-2904-4207-b626-169515781af6